fUST/lending_fUST_20250723
["ID","MTS","AMOUNT","RATE_DAILY","PERIOD"]
[374347593,1753277459923,-501.48761306,0.00022521,2]
[374347595,1753277459933,-1000.0,0.00022521,2]
[374347597,1753277459943,-500.0,0.00022521,2]
[374347599,1753277459954,-1004.19548328,0.00022521,2]
[374347601,1753277459966,-1000.0,0.00022521,2]
[374347603,1753277459975,-1001.10459567,0.00022521,2]
[374347605,1753277459986,-500.0,0.00022521,2]
[374347607,1753277459996,-1000.0,0.00022521,2]
[374347609,1753277460006,-1000.0,0.00022521,2]
[374347611,1753277460016,-500.0,0.00022521,2]
[374347613,1753277460026,-1000.0,0.00022521,2]
[374347615,1753277460036,-1000.0,0.00022521,2]
[374347617,1753277460047,-669.04434766,0.00022521,2]
[374347619,1753277460056,-1000.0,0.00022521,2]
[374347621,1753277460066,-1000.0,0.00022521,2]
[374347623,1753277460076,-1006.76194603,0.00022521,2]
[374347625,1753277460085,-1000.0,0.00022521,2]
[374347627,1753277460095,-1000.0,0.00022521,2]
[374347629,1753277460104,-189.96740107,0.00022521,2]
[374347631,1753277460114,-1000.0,0.00022521,2]
[374347633,1753277460124,-1000.0,0.00022521,2]
[374347635,1753277460134,-1298.05,0.00022565,7]
[374347637,1753277460144,-3432.7107726,0.00022568,2]
[374347639,1753277460153,-223.0315306,0.00022571,2]
[374347641,1753277460162,-158.691522,0.0002258,7]
[374347643,1753277460172,-158.691522,0.0002258,7]
[374347645,1753277460182,-325.310964,0.0002258,7]
[374347647,1753277460191,-325.310964,0.0002258,7]
[374347649,1753277460200,-628.295719,0.0002258,7]
[374347651,1753277460210,-628.295719,0.0002258,7]
[374347653,1753277460224,-401.106821,0.00022603,2]
[374347655,1753277460235,-400.0,0.00022603,2]
[374347657,1753277460244,-1298.05,0.00022665,6]
[374347659,1753277460255,-160.0,0.00022705,3]
[374347661,1753277460264,-6058.28,0.00022739,2]
[374347663,1753277460274,-1788.13,0.00022739,2]
[374347665,1753277460289,-1284.72,0.00022739,2]
[374347667,1753277460300,-4882.4,0.00022739,2]
[374347669,1753277460310,-151.0,0.00022739,7]
[374347671,1753277460320,-151.0,0.00022739,7]
[374347673,1753277460331,-460.0,0.00022739,2]
[374347675,1753277460341,-460.0,0.00022739,2]
[374347677,1753277460351,-2708.0,0.00022739,2]
[374347679,1753277460363,-460.0,0.00022739,2]
[374347681,1753277460373,-4459.31,0.00022739,2]
[374347683,1753277460382,-490.97,0.00022739,2]
[374347685,1753277460391,-460.0,0.00022739,2]
[374347687,1753277460401,-460.0,0.00022739,2]
[374347689,1753277460410,-2310.57,0.00022739,2]
[374347691,1753277460419,-460.0,0.00022739,2]
[374347693,1753277460429,-316.72,0.00022739,2]
[374347695,1753277460438,-460.0,0.00022739,2]
[374347697,1753277460447,-460.0,0.00022739,2]
[374347699,1753277460457,-426.49,0.00022739,2]
[374347701,1753277460472,-460.0,0.00022739,2]
[374347703,1753277460482,-3736.75,0.00022739,2]
[374347704,1753277460491,-612.28,0.00022739,2]
[374347706,1753277460501,-460.0,0.00022739,2]
[374347708,1753277460511,-615.76,0.00022739,2]
[374347710,1753277460520,-2163.7,0.00022739,2]
[374347712,1753277460529,-2057.8,0.00022739,2]
[374347714,1753277460539,-460.0,0.00022739,2]
[374347716,1753277460548,-693.97,0.00022739,2]
[374347718,1753277460558,-498.27,0.00022739,2]
[374347720,1753277460568,-678.85,0.00022739,2]
[374347722,1753277460579,-460.0,0.00022739,2]
[374347724,1753277460588,-994.99,0.00022739,2]
[374347726,1753277460598,-2634.88,0.00022739,2]
[374347728,1753277460607,-460.0,0.00022739,2]
[374347730,1753277460617,-460.0,0.00022739,2]
[374347732,1753277460627,-882.33,0.00022739,2]
[374347734,1753277460637,-3736.65,0.00022739,2]
[374347736,1753277460647,-473.03,0.00022739,2]
[374347738,1753277460656,-806.77,0.00022739,2]
[374347740,1753277460666,-585.2,0.00022739,2]
[374347742,1753277460676,-829.18,0.00022739,2]
[374347744,1753277460685,-530.39,0.00022739,2]
[374347746,1753277460694,-780.73,0.00022739,2]
[374347748,1753277460703,-581.53,0.00022739,2]
[374347750,1753277460713,-1115.91010818,0.0002276,2]
[374347754,1753277460747,-437.10510556,0.00018561,2]
[374347756,1753277460758,-268.98453325,0.0002276,2]
[374347757,1753277460767,-384.730661,0.00022762,2]
[374347759,1753277460776,-1298.05,0.00022765,3]
[374347761,1753277460786,-704.297764,0.00022767,7]
[374347763,1753277460796,-704.297764,0.00022767,7]
[374347765,1753277460806,-1040.34536374,0.0002277,2]
[374347767,1753277460816,-4404.1,0.00022771,6]
[374347769,1753277460826,-14140.6519092,0.0002278,7]
[374347773,1753277460849,-4247.11799763,0.0002278,7]
[374347775,1753277460861,-9568.96263402,0.0002278,7]
[374347777,1753277460872,-24686.40005265,0.00022846,2]
[374349677,1753277548968,-3859.81070874,0.00018463,2]
[374349678,1753277548991,-387.18929126,0.00018561,2]
[374349681,1753278053885,1916.4,0.0002602,120]
[374349683,1753278113378,450.622371,0.00013699,2]
[374349685,1753278155671,-19515.2939024,0.00018241,2]
[374349686,1753278155694,-961.13343443,0.00019073,2]
[374349687,1753278155716,-375.52863038,0.00019073,2]
[374349688,1753278155737,-375.52863036,0.00019076,2]
[374349689,1753278155760,-375.52863036,0.00019078,2]
[374349690,1753278155783,-1021.0,0.00019172,2]
[374349691,1753278155807,-500.0,0.00019173,2]
[374349692,1753278155828,-500.0,0.00019173,2]
[374349693,1753278155849,-375.98677207,0.00019173,2]
[374349694,1753278207061,-3046.15062249,0.00019078,2]
[374349695,1753278207091,-500.0,0.00019172,2]
[374349696,1753278207116,-381.90056729,0.00019172,2]
[374349697,1753278207138,-500.0,0.00019172,2]
[374349698,1753278207162,-500.0,0.00019172,2]
[374349699,1753278207186,-500.0,0.00019172,2]
[374349700,1753278207209,-500.0,0.00019172,2]
[374349701,1753278207233,-500.0,0.00019172,2]
[374349702,1753278207257,-500.0,0.00019172,2]
[374349703,1753278207280,-500.0,0.00019172,2]
[374349704,1753278207303,-500.0,0.00019172,2]
[374349705,1753278207325,-500.0,0.00019172,2]
[374349706,1753278207352,-500.0,0.00019172,2]
[374349707,1753278207374,-500.0,0.00019172,2]
[374349708,1753278207396,-500.0,0.00019172,2]
[374349709,1753278207418,-71.94881022,0.00019172,2]
[374349710,1753278353159,-1475.33420417,0.00019074,2]
[374349711,1753278437124,-476.41986753,0.000189,2]
[374349712,1753278437148,-840.9917551,0.0001907,2]
[374349713,1753278437171,-18639.12789213,0.00019074,2]
[374349714,1753278437658,-240.11703519,0.00019074,2]
[374350116,1753278636539,-1890.40195701,0.00019074,2]
[374350118,1753278636548,-579.46,0.00019168,3]
[374350120,1753278636558,-289.73,0.00019168,3]
[374350122,1753278636568,-869.19,0.00019168,3]
[374350124,1753278636578,-2484.13486037,0.00019168,2]
[374350126,1753278636590,-43043.65595131,0.00019168,2]
[374350128,1753278636600,-500.0,0.0001917,2]
[374350130,1753278636610,-500.0,0.00019173,2]
[374350132,1753278636620,-500.0,0.00019173,2]
[374350134,1753278636630,-444.43106828,0.00019173,2]
[374350136,1753278636639,-500.0,0.00019173,2]
[374350139,1753278636649,-500.0,0.00019173,2]
[374350141,1753278636658,-500.0,0.00019173,2]
[374350143,1753278636670,-500.0,0.00019173,2]
[374350145,1753278636679,-500.0,0.00019173,2]
[374350147,1753278636688,-500.0,0.00019173,2]
[374350149,1753278636700,-500.0,0.00019173,2]
[374350151,1753278636709,-500.0,0.00019173,2]
[374350153,1753278636719,-502.55260872,0.00019173,2]
[374350155,1753278636729,-247.09489484,0.00019177,2]
[374350157,1753278636739,-460.0,0.00019178,2]
[374350159,1753278636748,-460.0,0.00019178,2]
[374350161,1753278636758,-460.0,0.00019178,2]
[374350163,1753278636768,-7526.64,0.00019178,2]
[374350165,1753278636778,-460.0,0.00019178,2]
[374350167,1753278636788,-460.0,0.00019178,2]
[374350169,1753278636799,-460.0,0.00019178,2]
[374350171,1753278636808,-460.0,0.00019178,2]
[374350173,1753278636818,-463.97586269,0.00019178,2]
[374350175,1753278636830,-460.0,0.00019178,2]
[374350177,1753278636841,-460.0,0.00019178,2]
[374350179,1753278636850,-460.0,0.00019178,2]
[374350181,1753278636860,-460.0,0.00019178,2]
[374350183,1753278636870,-1926.88,0.00019178,2]
[374350185,1753278636880,-460.0,0.00019178,2]
[374350187,1753278636890,-460.0,0.00019178,2]
[374350189,1753278636900,-460.0,0.00019178,2]
[374350191,1753278636910,-460.0,0.00019178,2]
[374350194,1753278636919,-460.0,0.00019178,2]
[374350195,1753278636927,-460.0,0.00019178,2]
[374350197,1753278636936,-461.49756378,0.00019178,2]
[374350199,1753278636944,-460.0,0.00019178,2]
[374350201,1753278636954,-460.0,0.00019178,2]
[374350203,1753278636963,-460.0,0.00019178,2]
[374350205,1753278636971,-505.38852183,0.00019178,2]
[374350207,1753278636981,-500.0,0.00019178,2]
[374350209,1753278636990,-500.0,0.00019178,2]
[374350211,1753278637000,-460.0,0.00019178,2]
[374350214,1753278637010,-460.0,0.00019178,2]
[374350215,1753278637020,-460.0,0.00019178,2]
[374350217,1753278637030,-463.28531478,0.00019178,2]
[374350219,1753278637040,-460.0,0.00019178,2]
[374350222,1753278637049,-460.0,0.00019178,2]
[374350223,1753278637059,-460.0,0.00019178,2]
[374350226,1753278637069,-460.0,0.00019178,2]
[374350228,1753278637080,-460.0,0.00019178,2]
[374350230,1753278637090,-464.18260522,0.00019178,2]
[374350232,1753278637101,-460.0,0.00019178,2]
[374350234,1753278637110,-462.46344954,0.00019178,2]
[374350236,1753278637119,-460.0,0.00019178,2]
[374350238,1753278637126,-460.0,0.00019178,2]
[374350240,1753278637136,-460.0,0.00019178,2]
[374350242,1753278637144,-1268.06,0.00019178,2]
[374350243,1753278637153,-468.07327526,0.00019178,2]
[374350245,1753278637163,-460.0,0.00019178,2]
[374350248,1753278637172,-460.0,0.00019178,2]
[374350250,1753278637183,-460.0,0.00019178,2]
[374350252,1753278637192,-460.00000001,0.00019178,2]
[374350254,1753278637206,-460.0,0.00019178,2]
[374350256,1753278637216,-460.0,0.00019178,2]
[374350258,1753278637225,-460.0,0.00019178,2]
[374350260,1753278637236,-460.0,0.00019178,2]
[374350262,1753278637246,-621.61,0.00019178,2]
[374350264,1753278637256,-460.0,0.00019178,2]
[374350266,1753278637266,-460.0,0.00019178,2]
[374350268,1753278637279,-460.0,0.00019178,2]
[374350270,1753278637288,-460.0,0.00019178,2]
[374350272,1753278637298,-460.0,0.00019178,2]
[374350274,1753278637307,-460.0,0.00019178,2]
[374350276,1753278637317,-460.0,0.00019178,2]
[374350278,1753278637327,-480.34,0.00019178,2]
[374350280,1753278637336,-177.62326149,0.00019178,2]
[374350282,1753278637346,-460.0,0.00019178,2]
[374350284,1753278637355,-460.0,0.00019178,2]
[374350286,1753278637365,-460.0,0.00019178,2]
[374350288,1753278637375,-460.0,0.00019178,2]
[374350290,1753278637384,-458.93393877,0.00019178,2]
[374350292,1753278637394,-460.0,0.00019178,2]
[374350294,1753278637405,-560.49233873,0.00019178,2]
[374350296,1753278637415,-500.0,0.00019178,2]
[374350298,1753278637424,-500.0,0.00019178,2]
[374350300,1753278637434,-405.75432705,0.00019178,2]
[374350302,1753278637444,-460.0,0.00019178,2]
[374350304,1753278637459,-460.0,0.00019178,2]
[374350306,1753278637468,-460.0,0.00019178,2]
[374350308,1753278637477,-460.0,0.00019178,2]
[374350310,1753278637487,-460.0,0.00019178,2]
[374350312,1753278637496,-153.84727674,0.00019178,2]
[374350314,1753278637506,-460.0,0.00019178,2]
[374350316,1753278637516,-460.0,0.00019178,2]
[374350318,1753278637525,-460.0,0.00019178,2]
[374350320,1753278637535,-460.0,0.00019178,2]
[374350322,1753278637544,-460.0,0.00019178,2]
[374350324,1753278637554,-460.0,0.00019178,2]
[374350326,1753278637563,-460.0,0.00019178,2]
[374350328,1753278637574,-460.0,0.00019178,2]
[374350330,1753278637585,-460.0,0.00019178,2]
[374350332,1753278637594,-460.0,0.00019178,2]
[374350334,1753278637604,-460.0,0.00019178,2]
[374350336,1753278637614,-473.8932571,0.00019178,2]
[374350338,1753278637623,-460.77788889,0.00019178,2]
[374350340,1753278637633,-190.96473976,0.00019178,2]
[374350342,1753278637643,-460.0,0.00019178,2]
[374350344,1753278637652,-460.0,0.00019178,2]
[374350346,1753278637661,-460.0,0.00019178,2]
[374350348,1753278637671,-460.0,0.00019178,2]
[374350350,1753278637680,-460.0,0.00019178,2]
[374350352,1753278637690,-460.0,0.00019178,2]
[374350354,1753278637702,-460.0,0.00019178,2]
[374350356,1753278637712,-460.0,0.00019178,2]
[374350358,1753278637721,-460.0,0.00019178,2]
[374350360,1753278637730,-460.0,0.00019178,2]
[374350362,1753278637739,-436.87151439,0.00019178,2]
[374350364,1753278637749,-549.96,0.00019178,2]
[374350366,1753278637758,-460.0,0.00019178,2]
[374350368,1753278637767,-422.56310075,0.00019178,2]
[374350370,1753278637776,-466.08068285,0.00019178,2]
[374350372,1753278637786,-460.0,0.00019178,2]
[374350374,1753278637798,-460.0,0.00019178,2]
[374350376,1753278637808,-460.0,0.00019178,2]
[374350378,1753278637818,-460.0,0.00019178,2]
[374350380,1753278637827,-460.0,0.00019178,2]
[374350382,1753278637837,-460.0,0.00019178,2]
[374350384,1753278637848,-500.0,0.00019178,2]
[374350386,1753278637859,-500.0,0.00019178,2]
[374350388,1753278637868,-500.0,0.00019178,2]
[374350390,1753278637878,-500.0,0.00019178,2]
[374350392,1753278637889,-326.85496512,0.00019178,2]
[374350394,1753278637899,-500.0,0.00019178,2]
[374350396,1753278637912,-500.0,0.00019178,2]
[374350398,1753278637922,-500.0,0.00019178,2]
[374350400,1753278637931,-460.0,0.00019178,2]
[374350402,1753278637940,-462.27940581,0.00019178,2]
[374350404,1753278637953,-460.0,0.00019178,2]
[374350406,1753278637963,-460.0,0.00019178,2]
[374350408,1753278637973,-460.0,0.00019178,2]
[374350410,1753278637982,-460.0,0.00019178,2]
[374350412,1753278637992,-500.0,0.00019178,2]
[374350414,1753278638002,-460.0,0.00019178,2]
[374350416,1753278638011,-500.0,0.00019178,2]
[374350418,1753278638021,-500.0,0.00019178,2]
[374350420,1753278638031,-509.52856591,0.00019178,2]
[374350422,1753278638040,-460.0,0.00019178,2]
[374350424,1753278638050,-460.0,0.00019178,2]
[374350426,1753278638059,-460.0,0.00019178,2]
[374350428,1753278638069,-460.0,0.00019178,2]
[374350430,1753278638078,-460.0,0.00019178,2]
[374350432,1753278638088,-464.03122356,0.00019178,2]
[374350434,1753278638098,-460.0,0.00019178,2]
[374350437,1753278638108,-460.0,0.00019178,2]
[374350440,1753278638118,-460.0,0.00019178,2]
[374350441,1753278638127,-397.14661756,0.00019178,2]
[374350444,1753278638137,-460.0,0.00019178,2]
[374350445,1753278638146,-460.0,0.00019178,2]
[374350448,1753278638156,-460.0,0.00019178,2]
[374350450,1753278638165,-460.0,0.00019178,2]
[374350451,1753278638175,-580.38,0.00019178,2]
[374350453,1753278638184,-460.0,0.00019178,2]
[374350455,1753278638194,-460.0,0.00019178,2]
[374350458,1753278638208,-460.0,0.00019178,2]
[374350460,1753278638217,-460.0,0.00019178,2]
[374350461,1753278638227,-460.0,0.00019178,2]
[374350463,1753278638237,-460.0,0.00019178,2]
[374350466,1753278638246,-460.0,0.00019178,2]
[374350469,1753278638256,-460.0,0.00019178,2]
[374350471,1753278638265,-460.0,0.00019178,2]
[374350474,1753278638275,-466.41807707,0.00019178,2]
[374350478,1753278638284,-460.0,0.00019178,2]
[374350481,1753278638295,-460.0,0.00019178,2]
[374350483,1753278638304,-289.63056503,0.00019178,2]
[374350485,1753278638321,-174.17545109,0.00019178,2]
[374350487,1753278638331,-460.0,0.00019178,2]
[374350489,1753278638340,-460.0,0.00019178,2]
[374350491,1753278638350,-460.0,0.00019178,2]
[374350493,1753278638359,-460.0,0.00019178,2]
[374350495,1753278638369,-460.0,0.00019178,2]
[374350498,1753278638378,-460.0,0.00019178,2]
[374350500,1753278638387,-460.0,0.00019178,2]
[374350501,1753278638397,-460.0,0.00019178,2]
[374350504,1753278638406,-460.0,0.00019178,2]
[374350505,1753278638416,-460.0,0.00019178,2]
[374350508,1753278638425,-460.0,0.00019178,2]
[374350509,1753278638435,-460.0,0.00019178,2]
[374350512,1753278638444,-460.0,0.00019178,2]
[374350514,1753278638457,-14.3181528,0.00019178,2]
[374350517,1753278638478,-445.6818472,0.00019178,2]
[374350519,1753278638488,-460.0,0.00019178,2]
[374350521,1753278638497,-460.0,0.00019178,2]
[374350523,1753278638507,-460.0,0.00019178,2]
[374350525,1753278638516,-460.0,0.00019178,2]
[374350527,1753278638525,-501.73254016,0.00019178,2]
[374350529,1753278638535,-500.0,0.00019178,2]
[374350530,1753278638546,-367.78561262,0.00019178,2]
[374350533,1753278638566,-92.21438738,0.00019178,2]
[374350535,1753278638575,-460.0,0.00019178,2]
[374350537,1753278638584,-460.0,0.00019178,2]
[374350539,1753278638594,-460.0,0.00019178,2]
[374350541,1753278638603,-460.0,0.00019178,2]
[374350542,1753278638612,-460.0,0.00019178,2]
[374350545,1753278638622,-460.0,0.00019178,2]
[374350547,1753278638631,-460.0,0.00019178,2]
[374350548,1753278638641,-460.0,0.00019178,2]
[374350551,1753278638651,-460.0,0.00019178,2]
[374350553,1753278638660,-460.0,0.00019178,2]
[374350554,1753278638669,-461.04137672,0.00019178,2]
[374350557,1753278638679,-961.09,0.00019178,2]
[374350559,1753278638688,-460.0,0.00019178,2]
[374350560,1753278638702,-460.39179181,0.00019178,2]
[374350563,1753278638712,-557.19843825,0.00019178,2]
[374350564,1753278638722,-460.0,0.00019178,2]
[374350567,1753278638731,-460.0,0.00019178,2]
[374350568,1753278638741,-460.0,0.00019178,2]
[374350571,1753278638750,-460.0,0.00019178,2]
[374350572,1753278638759,-460.0,0.00019178,2]
[374350574,1753278638768,-460.0,0.00019178,2]
[374350577,1753278638778,-460.0,0.00019178,2]
[374350579,1753278638788,-2054.53,0.00019178,2]
[374350581,1753278638799,-460.0,0.00019178,2]
[374350583,1753278638808,-460.0,0.00019178,2]
[374350585,1753278638818,-460.0,0.00019178,2]
[374350587,1753278638829,-460.0,0.00019178,2]
[374350589,1753278638839,-460.0,0.00019178,2]
[374350591,1753278638849,-542.39,0.00019178,2]
[374350593,1753278638859,-460.0,0.00019178,2]
[374350595,1753278638868,-460.0,0.00019178,2]
[374350596,1753278638877,-460.0,0.00019178,2]
[374350598,1753278638887,-501.71563604,0.00019178,2]
[374350600,1753278638898,-1763.41,0.00019178,2]
[374350602,1753278638908,-460.0,0.00019178,2]
[374350604,1753278638917,-460.0,0.00019178,2]
[374350606,1753278638927,-460.0,0.00019178,2]
[374350608,1753278638936,-460.0,0.00019178,2]
[374350610,1753278638951,-460.0,0.00019178,2]
[374350612,1753278638960,-484.64,0.00019178,2]
[374350614,1753278638969,-460.0,0.00019178,2]
[374350616,1753278638978,-460.0,0.00019178,2]
[374350618,1753278638988,-460.0,0.00019178,2]
[374350620,1753278638997,-460.0,0.00019178,2]
[374350622,1753278639007,-460.0,0.00019178,2]
[374350625,1753278639017,-460.0,0.00019178,2]
[374350626,1753278639026,-460.0,0.00019178,2]
[374350629,1753278639036,-460.0,0.00019178,2]
[374350630,1753278639046,-460.0,0.00019178,2]
[374350632,1753278639055,-460.0,0.00019178,2]
[374350634,1753278639064,-460.0,0.00019178,2]
[374350651,1753278639215,-460.0,0.00019178,2]
[374350653,1753278639226,-460.0,0.00019178,2]
[374350655,1753278639236,-460.0,0.00019178,2]
[374350657,1753278639245,-460.0,0.00019178,2]
[374350659,1753278639256,-460.0,0.00019178,2]
[374350661,1753278639265,-460.0,0.00019178,2]
[374350663,1753278639275,-460.0,0.00019178,2]
[374350666,1753278639285,-460.0,0.00019178,2]
[374350668,1753278639295,-460.0,0.00019178,2]
[374350670,1753278639305,-460.0,0.00019178,2]
[374350672,1753278639315,-460.0,0.00019178,2]
[374350674,1753278639324,-3279.89,0.00019178,2]
[374350676,1753278639334,-460.0,0.00019178,2]
[374350678,1753278639344,-460.0,0.00019178,2]
[374350681,1753278639354,-595.63,0.00019178,2]
[374350683,1753278639364,-460.0,0.00019178,2]
[374350685,1753278639375,-460.0,0.00019178,2]
[374350687,1753278639384,-460.0,0.00019178,2]
[374350689,1753278639394,-460.0,0.00019178,2]
[374350691,1753278639403,-460.0,0.00019178,2]
[374350693,1753278639413,-460.0,0.00019178,2]
[374350695,1753278639422,-460.0,0.00019178,2]
[374350697,1753278639432,-460.0,0.00019178,2]
[374350699,1753278639442,-708.43,0.00019178,2]
[374350701,1753278639454,-460.0,0.00019178,2]
[374350702,1753278639465,-460.0,0.00019178,2]
[374350704,1753278639475,-460.0,0.00019178,2]
[374350706,1753278639485,-460.0,0.00019178,2]
[374350708,1753278639494,-460.0,0.00019178,2]
[374350710,1753278639506,-460.0,0.00019178,2]
[374350712,1753278639516,-460.0,0.00019178,2]
[374350714,1753278639526,-461.02402229,0.00019178,2]
[374350716,1753278639535,-10302.36,0.00019178,2]
[374350718,1753278639544,-460.0,0.00019178,2]
[374350720,1753278639554,-1333.69,0.00019178,2]
[374350722,1753278639563,-460.0,0.00019178,2]
[374350724,1753278639573,-460.0,0.00019178,2]
[374350726,1753278639582,-460.00000063,0.00019178,2]
[374350728,1753278639592,-460.0,0.00019178,2]
[374350730,1753278639601,-553.39,0.00019178,2]
[374350732,1753278639612,-460.0,0.00019178,2]
[374350734,1753278639622,-460.0,0.00019178,2]
[374350736,1753278639631,-460.0,0.00019178,2]
[374350738,1753278639641,-460.0,0.00019178,2]
[374350740,1753278639651,-460.0,0.00019178,2]
[374350742,1753278639660,-460.0,0.00019178,2]
[374350744,1753278639670,-460.0,0.00019178,2]
[374350746,1753278639680,-478.71,0.00019178,2]
[374350748,1753278639689,-460.0,0.00019178,2]
[374350750,1753278639702,-460.0,0.00019178,2]
[374350752,1753278639713,-460.0,0.00019178,2]
[374350754,1753278639722,-460.0,0.00019178,2]
[374350756,1753278639732,-2453.51,0.00019178,2]
[374350758,1753278639741,-460.0,0.00019178,2]
[374350760,1753278639751,-2633.59,0.00019178,2]
[374350762,1753278639761,-460.0,0.00019178,2]
[374350764,1753278639770,-460.0,0.00019178,2]
[374350766,1753278639780,-536.74,0.00019178,2]
[374350768,1753278639789,-460.0,0.00019178,2]
[374350771,1753278639805,-460.0,0.00019178,2]
[374350774,1753278639816,-460.0,0.00019178,2]
[374350778,1753278639826,-460.0,0.00019178,2]
[374350781,1753278639836,-460.0,0.00019178,2]
[374350784,1753278639849,-2867.23,0.00019178,2]
[374350787,1753278639859,-460.0,0.00019178,2]
[374350790,1753278639869,-460.0,0.00019178,2]
[374350793,1753278639879,-1093.38,0.00019178,2]
[374350796,1753278639892,-460.0,0.00019178,2]
[374350799,1753278639903,-460.0,0.00019178,2]
[374350802,1753278639913,-460.0,0.00019178,2]
[374350804,1753278639923,-828.75,0.00019178,2]
[374350806,1753278639934,-460.0,0.00019178,2]
[374350808,1753278639944,-460.0,0.00019178,2]
[374350811,1753278639959,-460.0,0.00019178,2]
[374350813,1753278639970,-301.82434676,0.00019178,2]
[374350879,1753278640395,-500.0,0.00019167,2]
[374350882,1753278640405,-500.0,0.00019167,2]
[374350884,1753278640414,-500.0,0.00019167,2]
[374350887,1753278640424,-500.0,0.00019167,2]
[374350890,1753278640434,-500.0,0.00019167,2]
[374350893,1753278640444,-500.0,0.00019167,2]
[374350895,1753278640458,-500.0,0.00019167,2]
[374350898,1753278640468,-500.0,0.00019167,2]
[374350901,1753278640478,-500.0,0.00019167,2]
[374350904,1753278640487,-500.0,0.00019167,2]
[374350907,1753278640497,-500.0,0.00019167,2]
[374350910,1753278640507,-500.0,0.00019167,2]
[374350913,1753278640517,-500.0,0.00019167,2]
[374350917,1753278640529,-500.0,0.00019167,2]
[374350920,1753278640538,-500.0,0.00019167,2]
[374350922,1753278640547,-500.0,0.00019167,2]
[374350925,1753278640557,-500.0,0.00019167,2]
[374350928,1753278640566,-500.0,0.00019167,2]
[374350931,1753278640575,-500.0,0.00019167,2]
[374350934,1753278640585,-500.0,0.00019167,2]
[374350937,1753278640595,-500.0,0.00019167,2]
[374350940,1753278640605,-233.97260228,0.00019167,2]
[374350944,1753278640617,-266.02739772,0.00019167,2]
[374350947,1753278640627,-500.0,0.00019167,2]
[374350950,1753278640636,-550.0,0.00019167,2]
[374350953,1753278640645,-500.0,0.00019167,2]
[374350956,1753278640654,-500.0,0.00019167,2]
[374350958,1753278640663,-500.0,0.00019167,2]
[374350961,1753278640673,-500.0,0.00019167,2]
[374350964,1753278640682,-500.0,0.00019167,2]
[374350967,1753278640691,-500.0,0.00019167,2]
[374350970,1753278640703,-500.0,0.00019167,2]
[374350973,1753278640712,-500.0,0.00019167,2]
[374350976,1753278640722,-279.6378288,0.00019167,2]
[374350978,1753278640732,-500.0,0.00019167,2]
[374350981,1753278640742,-158.17565324,0.00019178,2]
[374350984,1753278640751,-460.0,0.00019178,2]
[374350987,1753278640761,-460.0,0.00019178,2]
[374350989,1753278640770,-1266.0,0.00019178,2]
[374350991,1753278640780,-460.0,0.00019178,2]
[374350993,1753278640790,-1689.94,0.00019178,2]
[374350995,1753278640800,-460.0,0.00019178,2]
[374350997,1753278640810,-553.20793542,0.00019178,2]
[374350999,1753278640821,-1612.78,0.00019178,2]